[Event "Late-Titled-Tuesday-Blitz-June-04-2024"]
[Site "Chess.com"]
[Date "2024.06.04"]
[Round "2"]
[White "HajiyevKanan"]
[Black "familijatop71"]
[Result "1-0"]
[WhiteElo "2515"]
[BlackElo "2294"]
[TimeControl "180+1"]
[EndTime "14:16:58 PDT"]
[Termination "HajiyevKanan won by resignation"]

1. d4 {[%clk 0:03:00.9]} 1... d5 {[%clk 0:03:00]} 2. Nf3 {[%clk 0:03:00.6]} 2...
Nf6 {[%clk 0:03:00]} 3. c4 {[%clk 0:03:00.8]} 3... e6 {[%clk 0:03:00.1]} 4. cxd5
{[%clk 0:03:01.2]} 4... exd5 {[%clk 0:03:00]} 5. Nc3 {[%clk 0:03:01.2]} 5... c6
{[%clk 0:03:00.3]} 6. Qc2 {[%clk 0:03:00.7]} 6... Be7 {[%clk 0:02:56.9]} 7. Bf4
{[%clk 0:02:59.4]} 7... O-O {[%clk 0:02:56.3]} 8. e3 {[%clk 0:02:59.2]} 8... Bd6
{[%clk 0:02:53.8]} 9. Bg5 {[%clk 0:02:58.7]} 9... h6 {[%clk 0:02:49.8]} 10. Bh4
{[%clk 0:02:57.9]} 10... Re8 {[%clk 0:02:47.7]} 11. Bd3 {[%clk 0:02:58]} 11...
Nbd7 {[%clk 0:02:45.5]} 12. O-O {[%clk 0:02:58.1]} 12... Be7 {[%clk 0:02:45]}
13. Rab1 {[%clk 0:02:58.4]} 13... Ne4 {[%clk 0:02:43.7]} 14. Bxe7 {[%clk
0:02:57.6]} 14... Qxe7 {[%clk 0:02:44.6]} 15. b4 {[%clk 0:02:53.2]} 15... a6
{[%clk 0:02:44.7]} 16. a4 {[%clk 0:02:52.2]} 16... Ndf6 {[%clk 0:02:44.8]} 17.
Ne5 {[%clk 0:02:51.8]} 17... Bf5 {[%clk 0:02:40.7]} 18. b5 {[%clk 0:02:24.2]}
18... Nxc3 {[%clk 0:02:38.4]} 19. Qxc3 {[%clk 0:02:22.7]} 19... axb5 {[%clk
0:02:26.5]} 20. Bxf5 {[%clk 0:02:20.7]} 20... bxa4 {[%clk 0:02:16.3]} 21. Qb4
{[%clk 0:02:13.8]} 21... Qxb4 {[%clk 0:02:11.4]} 22. Rxb4 {[%clk 0:02:14.7]}
22... a3 {[%clk 0:02:11]} 23. Ra1 {[%clk 0:02:11.8]} 23... g6 {[%clk 0:02:09.4]}
24. Bd3 {[%clk 0:01:57.2]} 24... Ra7 {[%clk 0:02:09]} 25. Rb3 {[%clk 0:01:56.6]}
25... Rea8 {[%clk 0:02:04.7]} 26. f3 {[%clk 0:01:51.1]} 26... Ne8 {[%clk
0:01:54.9]} 27. Ra2 {[%clk 0:01:50.3]} 27... Kg7 {[%clk 0:01:53.1]} 28. Kf2
{[%clk 0:01:50.1]} 28... Nd6 {[%clk 0:01:51.4]} 29. h4 {[%clk 0:01:47.8]} 29...
f5 {[%clk 0:01:51.1]} 30. Nd7 {[%clk 0:01:47.7]} 30... b5 {[%clk 0:01:44.8]} 31.
Nc5 {[%clk 0:01:44.2]} 31... Nc4 {[%clk 0:01:41.4]} 32. e4 {[%clk 0:01:35.9]}
32... fxe4 {[%clk 0:01:38.4]} 33. fxe4 {[%clk 0:01:36.3]} 33... Nb2 {[%clk
0:01:05.3]} 34. exd5 {[%clk 0:01:28.4]} 34... Nxd3+ {[%clk 0:01:01.4]} 35. Nxd3
{[%clk 0:01:26]} 35... cxd5 {[%clk 0:00:56.6]} 36. Rxb5 {[%clk 0:01:25.3]} 36...
Rf7+ {[%clk 0:00:57.3]} 37. Ke3 {[%clk 0:01:22.6]} 37... Re8+ {[%clk 0:00:57.3]}
38. Ne5 {[%clk 0:01:22.7]} 38... Rf1 {[%clk 0:00:55.4]} 39. Rb7+ {[%clk
0:01:17.5]} 39... Kg8 {[%clk 0:00:53.9]} 40. Rxa3 {[%clk 0:01:17.4]} 40... Re1+
{[%clk 0:00:51.9]} 41. Kd2 {[%clk 0:01:11.8]} 41... Re4 {[%clk 0:00:49.1]} 42.
Raa7 {[%clk 0:01:01.4]} 42... Rc8 {[%clk 0:00:08.2]} 43. Rg7+ {[%clk 0:00:55.3]}
43... Kf8 {[%clk 0:00:05.8]} 44. Nxg6+ {[%clk 0:00:54.7]} 1-0

[Event "Late-Titled-Tuesday-Blitz-June-04-2024"]
[Site "Chess.com"]
[Date "2024.06.04"]
[Round "2"]
[White "toninhojit"]
[Black "Naruna_Chan"]
[Result "0-1"]
[WhiteElo "2492"]
[BlackElo "2282"]
[TimeControl "180+1"]
[EndTime "14:16:58 PDT"]
[Termination "Naruna_Chan won by resignation"]

1. e4 {[%clk 0:03:00.9]} 1... c5 {[%clk 0:02:59.6]} 2. Nf3 {[%clk 0:03:00.5]}
2... Nc6 {[%clk 0:03:00.1]} 3. d4 {[%clk 0:02:59.1]} 3... cxd4 {[%clk 0:03:01]}
4. Nxd4 {[%clk 0:02:59.5]} 4... e6 {[%clk 0:03:00.7]} 5. Nc3 {[%clk 0:02:56.1]}
5... Bc5 {[%clk 0:02:57.3]} 6. Nb3 {[%clk 0:02:55.4]} 6... Bb6 {[%clk
0:02:57.3]} 7. Bf4 {[%clk 0:02:52.5]} 7... Nge7 {[%clk 0:02:54.2]} 8. Na4 {[%clk
0:02:39.5]} 8... Bc7 {[%clk 0:02:50.6]} 9. Bd6 {[%clk 0:02:25.2]} 9... O-O
{[%clk 0:02:46]} 10. Be2 {[%clk 0:02:24.7]} 10... Re8 {[%clk 0:02:42.4]} 11. O-O
{[%clk 0:02:24.2]} 11... f5 {[%clk 0:02:37.7]} 12. Bf3 {[%clk 0:02:18.6]} 12...
Ne5 {[%clk 0:02:32.6]} 13. Bxc7 {[%clk 0:02:07.5]} 13... Qxc7 {[%clk 0:02:28.9]}
14. Nc3 {[%clk 0:02:07.8]} 14... Nxf3+ {[%clk 0:02:18.7]} 15. Qxf3 {[%clk
0:02:08.7]} 15... fxe4 {[%clk 0:02:18.6]} 16. Qxe4 {[%clk 0:02:06.5]} 16... d5
{[%clk 0:02:18.4]} 17. Qh4 {[%clk 0:02:03.5]} 17... e5 {[%clk 0:02:15.4]} 18.
Rfe1 {[%clk 0:01:58.6]} 18... Bf5 {[%clk 0:01:56.1]} 19. Qg5 {[%clk 0:01:48.7]}
19... Bxc2 {[%clk 0:01:45.3]} 20. Rxe5 {[%clk 0:01:43.5]} 20... Bxb3 {[%clk
0:01:33.5]} 21. axb3 {[%clk 0:01:44.4]} 21... Ng6 {[%clk 0:01:16.4]} 22. Rxd5
{[%clk 0:01:38.9]} 22... Re6 {[%clk 0:00:54.4]} 23. Rad1 {[%clk 0:01:36.4]}
23... Rae8 {[%clk 0:00:53.7]} 24. g3 {[%clk 0:01:27.7]} 24... Qf7 {[%clk
0:00:38.3]} 25. Rd8 {[%clk 0:01:18.6]} 25... Ne5 {[%clk 0:00:33.9]} 26. Rxe8+
{[%clk 0:01:13.9]} 26... Rxe8 {[%clk 0:00:34.8]} 27. Qc1 {[%clk 0:00:48.5]}
27... Nf3+ {[%clk 0:00:20.7]} 28. Kg2 {[%clk 0:00:48.8]} 28... Ne5 {[%clk
0:00:18.8]} 29. Qc2 {[%clk 0:00:38.9]} 29... Qf3+ {[%clk 0:00:17.8]} 30. Kg1
{[%clk 0:00:39.4]} 30... Ng4 {[%clk 0:00:17.3]} 31. Qd2 {[%clk 0:00:33.7]} 31...
Rf8 {[%clk 0:00:17.3]} 32. Qd5+ {[%clk 0:00:28.7]} 32... Qxd5 {[%clk 0:00:17.8]}
33. Rxd5 {[%clk 0:00:29.4]} 33... Nxf2 {[%clk 0:00:17.4]} 34. Kg2 {[%clk
0:00:27.8]} 34... Ng4 {[%clk 0:00:17.3]} 35. Ne4 {[%clk 0:00:26]} 35... Ne3+
{[%clk 0:00:17.5]} 0-1

[Event "Late-Titled-Tuesday-Blitz-June-04-2024"]
[Site "Chess.com"]
[Date "2024.06.04"]
[Round "2"]
[White "boguszp"]
[Black "Bond_7_7_7"]
[Result "0-1"]
[WhiteElo "1987"]
[BlackElo "2423"]
[TimeControl "180+1"]
[EndTime "14:16:58 PDT"]
[Termination "Bond_7_7_7 won on time"]

1. d4 {[%clk 0:03:00.9]} 1... d5 {[%clk 0:02:59.3]} 2. Nf3 {[%clk 0:03:00.5]}
2... Nf6 {[%clk 0:02:58.7]} 3. c4 {[%clk 0:03:00.4]} 3... e6 {[%clk 0:02:58.7]}
4. Nc3 {[%clk 0:03:00.5]} 4... Bb4 {[%clk 0:02:55.8]} 5. Bg5 {[%clk 0:02:59.1]}
5... h6 {[%clk 0:02:54.9]} 6. Bxf6 {[%clk 0:02:58.1]} 6... Qxf6 {[%clk
0:02:54.8]} 7. e3 {[%clk 0:02:53.1]} 7... O-O {[%clk 0:02:53.4]} 8. Bd3 {[%clk
0:02:50.1]} 8... dxc4 {[%clk 0:02:52.4]} 9. Bxc4 {[%clk 0:02:49.8]} 9... c5
{[%clk 0:02:52.5]} 10. O-O {[%clk 0:02:44.3]} 10... cxd4 {[%clk 0:02:49.9]} 11.
Qxd4 {[%clk 0:02:42.1]} 11... Qe7 {[%clk 0:02:46.7]} 12. Rfd1 {[%clk 0:02:22.8]}
12... Nc6 {[%clk 0:02:44.8]} 13. Qg4 {[%clk 0:02:03.3]} 13... e5 {[%clk
0:02:36.9]} 14. Qg3 {[%clk 0:02:02.1]} 14... Be6 {[%clk 0:02:28.5]} 15. Nd5
{[%clk 0:01:51.4]} 15... Bxd5 {[%clk 0:02:28.2]} 16. Rxd5 {[%clk 0:01:49.2]}
16... Bd6 {[%clk 0:02:23.3]} 17. Rad1 {[%clk 0:01:45.8]} 17... Rad8 {[%clk
0:02:22.4]} 18. e4 {[%clk 0:01:36.1]} 18... Kh8 {[%clk 0:02:15.7]} 19. Nh4
{[%clk 0:01:30.9]} 19... Qf6 {[%clk 0:02:11.9]} 20. Nf5 {[%clk 0:01:24.3]} 20...
Bc7 {[%clk 0:02:11.2]} 21. Rd7 {[%clk 0:01:10.9]} 21... Rxd7 {[%clk 0:02:06.9]}
22. Rxd7 {[%clk 0:01:10.2]} 22... Bb6 {[%clk 0:01:59.5]} 23. Qd3 {[%clk
0:01:02.8]} 23... Nd4 {[%clk 0:01:47.9]} 24. Rd6 {[%clk 0:00:51.8]} 24... Qg5
{[%clk 0:01:46.7]} 25. Qe3 {[%clk 0:00:38.9]} 25... Nxf5 {[%clk 0:01:06]} 26.
Qxg5 {[%clk 0:00:33.3]} 26... Nxd6 {[%clk 0:01:04.6]} 27. Qe7 {[%clk 0:00:25.9]}
27... Rd8 {[%clk 0:01:04.7]} 28. Bd5 {[%clk 0:00:23.5]} 28... Nxe4 {[%clk
0:01:04.5]} 29. Bb3 {[%clk 0:00:12]} 29... Nxf2 {[%clk 0:01:00.3]} 30. Kf1
{[%clk 0:00:11.1]} 30... f6 {[%clk 0:00:56]} 31. Qxd8+ {[%clk 0:00:09]} 31...
Bxd8 {[%clk 0:00:55.4]} 32. Kxf2 {[%clk 0:00:09.1]} 32... Bb6+ {[%clk
0:00:54.4]} 33. Kf3 {[%clk 0:00:08.4]} 33... Bd4 {[%clk 0:00:55]} 34. Bd5 {[%clk
0:00:06.9]} 34... Bxb2 {[%clk 0:00:55.6]} 35. Bxb7 {[%clk 0:00:06.9]} 35... f5
{[%clk 0:00:55.9]} 36. Bc8 {[%clk 0:00:05.9]} 36... g6 {[%clk 0:00:56]} 37. g4
{[%clk 0:00:05.6]} 37... e4+ {[%clk 0:00:56.4]} 38. Ke3 {[%clk 0:00:04.9]} 38...
Bc1+ {[%clk 0:00:56.6]} 39. Ke2 {[%clk 0:00:03.9]} 39... f4 {[%clk 0:00:56.5]}
40. Bb7 {[%clk 0:00:02.4]} 40... e3 {[%clk 0:00:54.8]} 41. Kf3 {[%clk
0:00:01.2]} 41... g5 {[%clk 0:00:54.4]} 0-1

[Event "Late-Titled-Tuesday-Blitz-June-04-2024"]
[Site "Chess.com"]
[Date "2024.06.04"]
[Round "2"]
[White "Harry_Rakkel"]
[Black "laskakid"]
[Result "1-0"]
[WhiteElo "2702"]
[BlackElo "2376"]
[TimeControl "180+1"]
[EndTime "14:17:00 PDT"]
[Termination "Harry_Rakkel won by resignation"]

1. c4 {[%clk 0:03:00.9]} 1... f5 {[%clk 0:02:59.4]} 2. d4 {[%clk 0:02:59.4]}
2... Nf6 {[%clk 0:02:59.5]} 3. Nc3 {[%clk 0:02:57.8]} 3... d6 {[%clk 0:02:59.5]}
4. Bg5 {[%clk 0:02:52.2]} 4... Nbd7 {[%clk 0:02:59.4]} 5. Qc2 {[%clk 0:02:51.3]}
5... g6 {[%clk 0:02:59.5]} 6. O-O-O {[%clk 0:02:49.7]} 6... c6 {[%clk
0:02:57.4]} 7. Nh3 {[%clk 0:02:45.3]} 7... e5 {[%clk 0:02:44.5]} 8. e4 {[%clk
0:02:29.7]} 8... h6 {[%clk 0:02:07.7]} 9. exf5 {[%clk 0:02:01.8]} 9... hxg5
{[%clk 0:02:06.5]} 10. Nxg5 {[%clk 0:02:00.9]} 10... exd4 {[%clk 0:01:56]} 11.
Ne6 {[%clk 0:01:55.4]} 11... Qb6 {[%clk 0:01:51]} 12. Rxd4 {[%clk 0:01:10.7]}
12... Bh6+ {[%clk 0:01:47.2]} 13. Kb1 {[%clk 0:01:09.5]} 13... Ne5 {[%clk
0:01:39.6]} 14. c5 {[%clk 0:00:51]} 14... Qa5 {[%clk 0:01:27.7]} 15. Ra4 {[%clk
0:00:49.7]} 15... Qxa4 {[%clk 0:01:16.3]} 16. Nxa4 {[%clk 0:00:42.7]} 16... Bxe6
{[%clk 0:01:14.8]} 17. fxe6 {[%clk 0:00:42.6]} 17... O-O-O {[%clk 0:01:12.1]}
18. e7 {[%clk 0:00:34.9]} 18... Rd7 {[%clk 0:01:08.6]} 19. cxd6 {[%clk
0:00:33.8]} 19... Rxd6 {[%clk 0:01:08.8]} 20. Be2 {[%clk 0:00:27.8]} 20... Rd2
{[%clk 0:01:01.4]} 21. Qc5 {[%clk 0:00:23.6]} 21... Rxe2 {[%clk 0:01:00.5]} 22.
Qxa7 {[%clk 0:00:23.4]} 22... Re8 {[%clk 0:00:53.8]} 23. Rd1 {[%clk 0:00:20.5]}
23... Nd5 {[%clk 0:00:48.3]} 24. Nb6+ {[%clk 0:00:18.8]} 24... Kc7 {[%clk
0:00:47]} 25. Nxd5+ {[%clk 0:00:18.4]} 25... cxd5 {[%clk 0:00:46.6]} 26. Qa5+
{[%clk 0:00:19]} 26... Kd7 {[%clk 0:00:42.2]} 27. Qb5+ {[%clk 0:00:12.7]} 27...
Kxe7 {[%clk 0:00:41.6]} 28. Qxe2 {[%clk 0:00:13.3]} 28... Kf6 {[%clk 0:00:39.1]}
29. Rxd5 {[%clk 0:00:12.1]} 29... Re7 {[%clk 0:00:36.7]} 30. Rd6+ {[%clk
0:00:11.4]} 30... Kg7 {[%clk 0:00:36.3]} 31. Qe4 {[%clk 0:00:10.7]} 31... Bg5
{[%clk 0:00:35.6]} 32. f4 {[%clk 0:00:10.1]} 32... Nc6 {[%clk 0:00:33.3]} 33.
Qxg6+ {[%clk 0:00:09.2]} 33... Kf8 {[%clk 0:00:32.9]} 34. Qxg5 {[%clk
0:00:08.8]} 34... Re1+ {[%clk 0:00:32.2]} 35. Kc2 {[%clk 0:00:08.2]} 35... Nb4+
{[%clk 0:00:31.4]} 36. Kd2 {[%clk 0:00:08.1]} 1-0

[Event "Late-Titled-Tuesday-Blitz-June-04-2024"]
[Site "Chess.com"]
[Date "2024.06.04"]
[Round "2"]
[White "omer1997"]
[Black "cassoulet"]
[Result "0-1"]
[WhiteElo "2522"]
[BlackElo "2745"]
[TimeControl "180+1"]
[EndTime "14:17:03 PDT"]
[Termination "cassoulet won by resignation"]

1. e4 {[%clk 0:03:00.9]} 1... c5 {[%clk 0:02:59.4]} 2. Nf3 {[%clk 0:03:01.1]}
2... e6 {[%clk 0:02:59.9]} 3. g3 {[%clk 0:03:00.6]} 3... Nf6 {[%clk 0:02:59.6]}
4. Nc3 {[%clk 0:03:00.3]} 4... d5 {[%clk 0:02:58.7]} 5. exd5 {[%clk 0:03:00.5]}
5... exd5 {[%clk 0:02:58.5]} 6. d4 {[%clk 0:02:59.9]} 6... cxd4 {[%clk
0:02:57.9]} 7. Nxd4 {[%clk 0:02:59]} 7... Nc6 {[%clk 0:02:58.1]} 8. Bg2 {[%clk
0:02:49]} 8... Bc5 {[%clk 0:02:51.9]} 9. Nb3 {[%clk 0:02:44.3]} 9... Qe7+ {[%clk
0:02:51.6]} 10. Qe2 {[%clk 0:02:39.9]} 10... Qxe2+ {[%clk 0:02:45.3]} 11. Nxe2
{[%clk 0:02:35.8]} 11... Bb6 {[%clk 0:02:44.7]} 12. O-O {[%clk 0:02:30.5]} 12...
O-O {[%clk 0:02:44.2]} 13. Nf4 {[%clk 0:02:11.6]} 13... d4 {[%clk 0:02:36.5]}
14. Bd2 {[%clk 0:02:07.5]} 14... Bf5 {[%clk 0:02:35.6]} 15. Rac1 {[%clk
0:01:59.9]} 15... Rac8 {[%clk 0:02:35.5]} 16. Rfe1 {[%clk 0:01:46.1]} 16... Rfd8
{[%clk 0:02:31.2]} 17. h3 {[%clk 0:01:45.1]} 17... h6 {[%clk 0:02:29.4]} 18. Nd3
{[%clk 0:01:39.5]} 18... Nd5 {[%clk 0:02:22.3]} 19. Be4 {[%clk 0:01:24.2]} 19...
Bxh3 {[%clk 0:02:20.1]} 20. Kh2 {[%clk 0:01:22.4]} 20... Bg4 {[%clk 0:02:11.4]}
21. Kg2 {[%clk 0:01:18.6]} 21... Nf6 {[%clk 0:02:07.6]} 22. Bf3 {[%clk
0:01:16.7]} 22... Bxf3+ {[%clk 0:02:02.4]} 23. Kxf3 {[%clk 0:01:17.6]} 23... Rd5
{[%clk 0:02:01.5]} 24. Re2 {[%clk 0:01:16.2]} 24... a5 {[%clk 0:02:01]} 25. a4
{[%clk 0:01:15.2]} 25... Kf8 {[%clk 0:01:59.9]} 26. Rce1 {[%clk 0:01:13.8]}
26... Nd8 {[%clk 0:01:54.5]} 27. Ne5 {[%clk 0:01:04.4]} 27... Kg8 {[%clk
0:01:45.6]} 28. Bf4 {[%clk 0:00:54.7]} 28... g5 {[%clk 0:01:43.2]} 29. Bc1
{[%clk 0:00:54.9]} 29... Kg7 {[%clk 0:01:26.9]} 30. g4 {[%clk 0:00:53.3]} 30...
Bc7 {[%clk 0:01:10.6]} 31. Nd3 {[%clk 0:00:45.3]} 31... Ne6 {[%clk 0:01:09]} 32.
Bd2 {[%clk 0:00:42.7]} 32... b6 {[%clk 0:01:08.5]} 33. Bc1 {[%clk 0:00:41.4]}
33... Bd6 {[%clk 0:01:08.7]} 34. Rh1 {[%clk 0:00:39.2]} 34... Kg6 {[%clk
0:00:54.9]} 35. Rhe1 {[%clk 0:00:35.3]} 35... Rc4 {[%clk 0:00:45.7]} 36. Ne5+
{[%clk 0:00:19.2]} 36... Bxe5 {[%clk 0:00:44.5]} 37. Rxe5 {[%clk 0:00:20.1]}
37... Rxe5 {[%clk 0:00:44.4]} 38. Rxe5 {[%clk 0:00:18.7]} 38... Rxc2 {[%clk
0:00:44.4]} 39. Rb5 {[%clk 0:00:15.6]} 39... Nc5 {[%clk 0:00:41]} 0-1

[Event "Late-Titled-Tuesday-Blitz-June-04-2024"]
[Site "Chess.com"]
[Date "2024.06.04"]
[Round "2"]
[White "denizozen"]
[Black "YurasovMat-2012"]
[Result "1-0"]
[WhiteElo "2931"]
[BlackElo "2598"]
[TimeControl "180+1"]
[EndTime "14:17:05 PDT"]
[Termination "denizozen won by resignation"]

1. e4 {[%clk 0:03:00.9]} 1... e5 {[%clk 0:02:57.4]} 2. Nf3 {[%clk 0:03:00.5]}
2... Nf6 {[%clk 0:02:55.4]} 3. Nc3 {[%clk 0:03:00.1]} 3... Bb4 {[%clk
0:02:54.4]} 4. Nxe5 {[%clk 0:03:00.3]} 4... O-O {[%clk 0:02:54.7]} 5. Nd3 {[%clk
0:03:00.3]} 5... Bxc3 {[%clk 0:02:55]} 6. dxc3 {[%clk 0:03:01.2]} 6... Nxe4
{[%clk 0:02:55.3]} 7. Be2 {[%clk 0:03:01.4]} 7... d5 {[%clk 0:02:55.2]} 8. Nf4
{[%clk 0:03:01.6]} 8... c6 {[%clk 0:02:52.9]} 9. O-O {[%clk 0:03:01.5]} 9... Nd7
{[%clk 0:02:53]} 10. c4 {[%clk 0:02:55.6]} 10... Ndf6 {[%clk 0:02:52.4]} 11.
cxd5 {[%clk 0:02:55.2]} 11... cxd5 {[%clk 0:02:52.1]} 12. Be3 {[%clk 0:02:53.3]}
12... Bf5 {[%clk 0:02:50.1]} 13. Bd4 {[%clk 0:02:51.5]} 13... Rc8 {[%clk
0:02:45.2]} 14. c3 {[%clk 0:02:50.4]} 14... Re8 {[%clk 0:02:41.7]} 15. Bf3
{[%clk 0:02:44.4]} 15... Qd6 {[%clk 0:02:35.5]} 16. g3 {[%clk 0:02:40]} 16...
Ng5 {[%clk 0:02:29.9]} 17. Bxf6 {[%clk 0:02:11.1]} 17... Nxf3+ {[%clk
0:02:24.6]} 18. Qxf3 {[%clk 0:02:11]} 18... Be4 {[%clk 0:02:24.1]} 19. Qh5
{[%clk 0:01:55.3]} 19... Qxf6 {[%clk 0:02:20.7]} 20. Nxd5 {[%clk 0:01:47.5]}
20... Qc6 {[%clk 0:02:08.8]} 21. Ne3 {[%clk 0:01:38.4]} 21... Bf3 {[%clk
0:02:06.7]} 22. Qg5 {[%clk 0:01:33.2]} 22... h6 {[%clk 0:02:01.8]} 23. Qf4
{[%clk 0:01:30.2]} 23... Re6 {[%clk 0:01:57.4]} 24. Nf5 {[%clk 0:01:13.2]} 24...
g5 {[%clk 0:01:55.7]} 25. Qd4 {[%clk 0:01:06.9]} 25... f6 {[%clk 0:01:48.6]} 26.
Ne3 {[%clk 0:00:48.7]} 26... Bh1 {[%clk 0:01:45.6]} 27. f3 {[%clk 0:00:48.4]}
27... Bxf3 {[%clk 0:01:44.9]} 28. c4 {[%clk 0:00:47.9]} 28... Re4 {[%clk
0:01:36.7]} 29. Qd5+ {[%clk 0:00:47.2]} 29... Qxd5 {[%clk 0:01:33.5]} 30. Nxd5
{[%clk 0:00:48.1]} 30... g4 {[%clk 0:01:10.1]} 31. Nxf6+ {[%clk 0:00:48]} 31...
Kg7 {[%clk 0:01:10.2]} 32. Nxe4 {[%clk 0:00:47.4]} 32... Bxe4 {[%clk 0:01:11.1]}
33. Rae1 {[%clk 0:00:47.5]} 33... Bf3 {[%clk 0:01:10.6]} 34. b3 {[%clk 0:00:46]}
34... Rd8 {[%clk 0:01:10.3]} 35. Rf2 {[%clk 0:00:46]} 35... h5 {[%clk
0:01:10.1]} 36. Rc2 {[%clk 0:00:45.4]} 36... Kf6 {[%clk 0:01:07.4]} 37. c5
{[%clk 0:00:45.5]} 37... Kf5 {[%clk 0:01:07.2]} 38. b4 {[%clk 0:00:45.4]} 38...
h4 {[%clk 0:01:07.4]} 39. gxh4 {[%clk 0:00:44.8]} 39... a6 {[%clk 0:01:06.3]}
40. a4 {[%clk 0:00:44.8]} 40... Rd4 {[%clk 0:01:05.8]} 41. b5 {[%clk 0:00:42.4]}
41... axb5 {[%clk 0:00:56.6]} 42. axb5 {[%clk 0:00:43.3]} 42... g3 {[%clk
0:00:48.3]} 43. hxg3 {[%clk 0:00:40.5]} 43... Kg4 {[%clk 0:00:48.5]} 44. Kf2
{[%clk 0:00:28.7]} 44... Bd5 {[%clk 0:00:45.4]} 45. c6 {[%clk 0:00:27]} 45...
bxc6 {[%clk 0:00:42.5]} 46. bxc6 {[%clk 0:00:27.9]} 46... Rd3 {[%clk 0:00:42.8]}
47. Re3 {[%clk 0:00:25.7]} 47... Rd1 {[%clk 0:00:40.6]} 48. c7 {[%clk
0:00:24.5]} 1-0

[Event "Late-Titled-Tuesday-Blitz-June-04-2024"]
[Site "Chess.com"]
[Date "2024.06.04"]
[Round "2"]
[White "emeli_chess"]
[Black "stolencandy13"]
[Result "0-1"]
[WhiteElo "2369"]
[BlackElo "2629"]
[TimeControl "180+1"]
[EndTime "14:17:05 PDT"]
[Termination "stolencandy13 won by resignation"]

1. d4 {[%clk 0:03:00.9]} 1... Nf6 {[%clk 0:02:53.3]} 2. c4 {[%clk 0:03:00.6]}
2... c5 {[%clk 0:02:48.5]} 3. d5 {[%clk 0:03:00.1]} 3... e6 {[%clk 0:02:45.6]}
4. Nc3 {[%clk 0:02:59.7]} 4... exd5 {[%clk 0:02:46.5]} 5. cxd5 {[%clk
0:03:00.1]} 5... d6 {[%clk 0:02:47.4]} 6. Nf3 {[%clk 0:02:59.5]} 6... g6 {[%clk
0:02:47.5]} 7. h3 {[%clk 0:02:59.6]} 7... a6 {[%clk 0:02:47]} 8. a4 {[%clk
0:02:56.6]} 8... Bg7 {[%clk 0:02:47.6]} 9. e4 {[%clk 0:02:56.2]} 9... Nbd7
{[%clk 0:02:45.7]} 10. Bd3 {[%clk 0:02:55.6]} 10... Nh5 {[%clk 0:02:46]} 11. O-O
{[%clk 0:02:52.4]} 11... Ne5 {[%clk 0:02:46]} 12. Nxe5 {[%clk 0:02:51]} 12...
Bxe5 {[%clk 0:02:46.9]} 13. f4 {[%clk 0:02:39.6]} 13... Bd4+ {[%clk 0:02:29.9]}
14. Kh2 {[%clk 0:02:39.1]} 14... Qh4 {[%clk 0:02:02.8]} 15. Qf3 {[%clk
0:02:36.7]} 15... f5 {[%clk 0:01:45.2]} 16. Be3 {[%clk 0:02:25.4]} 16... Bxe3
{[%clk 0:01:39.1]} 17. Qxe3 {[%clk 0:02:24.6]} 17... O-O {[%clk 0:01:38.5]} 18.
e5 {[%clk 0:02:17.2]} 18... dxe5 {[%clk 0:01:35.6]} 19. fxe5 {[%clk 0:02:01.5]}
19... f4 {[%clk 0:01:32]} 20. Qf2 {[%clk 0:01:47.3]} 20... Qg5 {[%clk
0:01:21.6]} 21. Rae1 {[%clk 0:01:42.4]} 21... f3 {[%clk 0:01:19.9]} 22. e6
{[%clk 0:01:31.9]} 22... Bxe6 {[%clk 0:01:13.7]} 23. dxe6 {[%clk 0:01:31.1]}
23... fxg2 {[%clk 0:01:13.7]} 24. Qxg2 {[%clk 0:01:31.2]} 24... Qe7 {[%clk
0:01:05.6]} 25. Rf7 {[%clk 0:00:59.1]} 25... Qd6+ {[%clk 0:01:00.6]} 26. Kg1
{[%clk 0:00:53.8]} 26... Qxd3 {[%clk 0:00:57]} 27. Nd5 {[%clk 0:00:45.2]} 27...
Qd4+ {[%clk 0:00:52.7]} 28. Kh2 {[%clk 0:00:41]} 28... Rxf7 {[%clk 0:00:47.6]}
29. exf7+ {[%clk 0:00:40.9]} 29... Kxf7 {[%clk 0:00:44]} 30. Qf3+ {[%clk
0:00:40.3]} 30... Kg7 {[%clk 0:00:32.8]} 31. Re7+ {[%clk 0:00:37]} 31... Kh6
{[%clk 0:00:27.5]} 32. Qe3+ {[%clk 0:00:35.7]} 32... Qxe3 {[%clk 0:00:27.2]} 33.
Nxe3 {[%clk 0:00:36]} 33... b5 {[%clk 0:00:25.5]} 34. h4 {[%clk 0:00:34.8]}
34... Nf6 {[%clk 0:00:20.2]} 35. a5 {[%clk 0:00:34.2]} 35... Re8 {[%clk
0:00:19.9]} 36. Rxe8 {[%clk 0:00:32.8]} 36... Nxe8 {[%clk 0:00:20.8]} 37. Nd5
{[%clk 0:00:33.1]} 37... g5 {[%clk 0:00:19.1]} 38. Kg3 {[%clk 0:00:32.5]} 38...
gxh4+ {[%clk 0:00:19.1]} 39. Kxh4 {[%clk 0:00:32.9]} 39... Kg6 {[%clk 0:00:20]}
40. Kg4 {[%clk 0:00:32.1]} 40... Nf6+ {[%clk 0:00:20.3]} 41. Nxf6 {[%clk
0:00:29.4]} 41... Kxf6 {[%clk 0:00:21.2]} 42. Kf4 {[%clk 0:00:29.3]} 42... h5
{[%clk 0:00:21.5]} 0-1